fUSD/lending_fUSD_20240719
["ID","MTS","AMOUNT","RATE_DAILY","PERIOD"]
[332614616,1721351440400,-180.0,0.00017645,2]
[332614618,1721351440409,-205.49,0.00017734,2]
[332614620,1721351440419,-1000.0,0.00017737,2]
[332614622,1721351440429,-8544.81229992,0.00017744,2]
[332614624,1721351440438,-3107.53711986,0.00017744,2]
[332614626,1721351440447,-346.16,0.0001779,2]
[332614628,1721351440456,-371.29329548,0.00018,2]
[332614630,1721351440465,-745.0,0.00018,2]
[332614632,1721351440475,-4858.0,0.00018,2]
[332614634,1721351440484,-359.09,0.0001803,2]
[332614636,1721351440493,-1794.234,0.00018079,2]
[332614638,1721351440502,-1659.0,0.00018079,2]
[332614640,1721351440511,-444.0,0.00018079,2]
[332614642,1721351440520,-182.0,0.00018079,2]
[332614644,1721351440529,-449.0,0.00018079,2]
[332614646,1721351440539,-620.0,0.00018079,2]
[332614648,1721351440548,-809.0,0.00018079,2]
[332614649,1721351440557,-153.554,0.00018079,2]
[332614651,1721351440566,-2380.0,0.00018079,2]
[332614653,1721351440576,-549.0,0.00018079,2]
[332614655,1721351440585,-3280.0,0.00018079,2]
[332614657,1721351440594,-1992.0,0.00018079,2]
[332614659,1721351440603,-151.0,0.00018079,2]
[332614661,1721351440612,-151.0,0.00018079,2]
[332614663,1721351440622,-151.0,0.00018079,2]
[332614665,1721351440633,-151.0,0.00018079,2]
[332614667,1721351440643,-158.939888,0.00018079,2]
[332614669,1721351440652,-211.695323,0.00018079,2]
[332614670,1721351440662,-151.0,0.00018079,2]
[332614671,1721351440671,-211.695323,0.00018079,2]
[332614672,1721351440680,-151.0,0.00018079,2]
[332614673,1721351440689,-153.88854848,0.00018225,2]
[332614674,1721351440699,-151.0,0.00018533,2]
[332614675,1721351440711,-151.0,0.00018533,2]
[332614676,1721351440720,-151.0,0.00018533,2]
[332614677,1721351440730,-151.0,0.00018533,2]
[332614678,1721351440739,-8544.81229992,0.00018533,2]
[332614679,1721351440749,-3107.53711986,0.00018533,2]
[332614680,1721351440760,-320.0,0.00018688,2]
[332614681,1721351440770,-151.0,0.0001877,2]
[332614682,1721351440780,-151.0,0.0001877,2]
[332614683,1721351440790,-151.0,0.0001877,2]
[332614684,1721351440800,-151.0,0.0001877,2]
[332614685,1721351440812,-151.0,0.0001877,2]
[332614686,1721351440822,-151.0,0.0001877,2]
[332614687,1721351440832,-169.727429,0.0001877,2]
[332614689,1721351440842,-151.0,0.0001877,2]
[332614691,1721351440851,-169.727429,0.0001877,2]
[332614693,1721351440861,-151.0,0.0001877,2]
[332614695,1721351440870,-151.0,0.0001877,2]
[332614696,1721351440881,-151.0,0.0001877,2]
[332614697,1721351440890,-151.0,0.0001877,2]
[332614698,1721351440899,-151.0,0.0001877,2]
[332614699,1721351440909,-205.49,0.0001877,2]
[332614700,1721351440919,-34850.75247682,0.0001878,2]
[332614701,1721351440928,-151.0,0.0001878,2]
[332614702,1721351440937,-151.0,0.0001878,2]
[332614703,1721351440946,-151.0,0.0001878,2]
[332614704,1721351440955,-250.0,0.00019,2]
[332614705,1721351440965,-3000.0,0.00019,2]
[332614706,1721351440974,-166.66666667,0.00019019,2]
[332614707,1721351440983,-166.66666668,0.00019103,2]
[332614708,1721351440993,-201.01298396,0.0001915,2]
[332614709,1721351441008,-934.71,0.00019178,2]
[332614710,1721351441018,-151.0,0.00019178,2]
[332614711,1721351441027,-8544.81229992,0.00019322,2]
[332614712,1721351441037,-3107.53711986,0.00019322,2]
[332614713,1721351441047,-155.29917121,0.00019343,2]
[332614714,1721351441056,-1000.0,0.0001935,2]
[332614715,1721351441065,-205.49,0.00019381,2]
[332614716,1721351441075,-5823.0,0.00019391,2]
[332614717,1721351441088,-1667.0,0.00019391,2]
[332614718,1721351441098,-5117.0,0.00019391,2]
[332614719,1721351441108,-1201.0,0.00019391,2]
[332614720,1721351441118,-38322.0,0.00019391,2]
[332614721,1721351441128,-346.16,0.00019407,2]
[332614722,1721351441138,-739.0,0.000197,2]
[332614723,1721351441147,-163.229368,0.00019705,2]
[332614724,1721351441157,-151.0,0.00019705,2]
[332614725,1721351441167,-151.0,0.00019705,2]
[332614726,1721351441176,-151.0,0.00019705,2]
[332614727,1721351441186,-722.390544,0.00019705,2]
[332614728,1721351441196,-722.390544,0.00019705,2]
[332614729,1721351441206,-151.0,0.00019705,2]
[332614730,1721351441216,-312.99154,0.00019705,2]
[332614731,1721351441225,-312.99154,0.00019705,2]
[332614732,1721351441235,-151.0,0.00019705,2]
[332614733,1721351441244,-151.0,0.00019705,2]
[332614734,1721351441255,-151.0,0.00019705,2]
[332614735,1721351441265,-300.690123,0.00019705,2]
[332614736,1721351441275,-151.0,0.00019705,2]
[332614737,1721351441285,-151.0,0.00019705,2]
[332614738,1721351441295,-151.0,0.00019705,2]
[332614739,1721351441304,-166.715702,0.00019705,2]
[332614740,1721351441313,-166.715702,0.00019705,2]
[332614741,1721351441324,-10000.0,0.00019716,2]
[332614742,1721351441334,-151.0,0.00019716,2]
[332614743,1721351441344,-614.334274,0.00019716,2]
[332614744,1721351441354,-614.334274,0.00019716,2]
[332614745,1721351441363,-151.519592,0.00019716,2]
[332614746,1721351441373,-151.0,0.00019716,2]
[332614747,1721351441384,-151.0,0.00019716,2]
[332614748,1721351441394,-151.0,0.00019716,2]
[332614749,1721351441403,-151.0,0.00019716,2]
[332614750,1721351441413,-151.0,0.00019716,2]
[332614751,1721351441423,-205.712664,0.00019716,2]
[332614752,1721351441432,-151.0,0.00019716,2]
[332614753,1721351441442,-151.0,0.00019716,2]
[332614754,1721351441728,-151.0,0.00019716,2]
[332614755,1721351441738,-151.0,0.00019716,2]
[332614756,1721351441747,-180.0,0.0001985,2]
[332614757,1721351441758,-2379.0,0.000199,5]
[332614758,1721351441768,-564.76952726,0.0002,2]
[332614759,1721351441778,-155.0,0.0002,2]
[332614760,1721351441787,-150.28,0.0002,2]
[332614761,1721351441796,-258.0,0.0002,2]
[332614762,1721351441805,-832.97,0.00020055,2]
[332614763,1721351441814,-231.98,0.00020055,2]
[332614764,1721351441823,-832.97,0.00020055,2]
[332614765,1721351441833,-218.73,0.00020055,2]
[332614766,1721351441843,-356.0,0.000201,2]
[332614767,1721351441852,-1000.0,0.000201,2]
[332614768,1721351441863,-225.0,0.000201,2]
[332614769,1721351441872,-155.29917121,0.0002011,2]
[332614770,1721351441885,-156.11927,0.00020111,2]
[332614771,1721351441894,-151.0,0.00020111,2]
[332614772,1721351441904,-151.0,0.00020111,2]
[332614773,1721351441913,-8544.81229992,0.00020111,2]
[332614774,1721351441922,-3107.53711986,0.00020111,2]
[332614775,1721351441932,-150.0,0.00020192,2]
[332614776,1721351441942,-908.81,0.00020192,2]
[332614777,1721351441951,-150.0,0.00020192,2]
[332614778,1721351441962,-330.0,0.00020192,2]
[332614779,1721351441972,-150.0,0.00020192,2]
[332614780,1721351441981,-355.49,0.00020192,2]
[332614781,1721351441991,-355.49,0.00020192,2]
[332614782,1721351442000,-355.49,0.00020192,2]
[332614783,1721351442014,-355.49,0.00020192,2]
[332614784,1721351442024,-355.49,0.00020192,2]
[332614785,1721351442034,-355.49,0.00020192,2]
[332614786,1721351442044,-203.02,0.00020192,2]
[332614787,1721351442054,-283.33682415,0.00020199,2]
[332614788,1721351442063,-700.0,0.000202,7]
[332614789,1721351442073,-237.80190822,0.00020293,2]
[332614790,1721351442084,-359.09,0.00020294,2]
[332614791,1721351442093,-1100.0,0.000203,7]
[332614792,1721351442103,-151.0,0.000204,2]
[332614793,1721351442113,-151.0,0.000204,2]
[332614794,1721351442122,-151.0,0.000204,2]
[332614795,1721351442134,-1400.0,0.000204,7]
[332614796,1721351442144,-151.0,0.000205,2]
[332614797,1721351442153,-151.0,0.000205,2]
[332614798,1721351442163,-1800.0,0.000205,7]
[332614799,1721351442173,-300.0,0.000206,7]
[332614800,1721351442183,-175.52485617,0.00020678,2]
[332614801,1721351442192,-174.58989142,0.00020678,2]
[332614802,1721351442201,-300.0,0.000207,7]
[332614803,1721351442211,-175.52485614,0.00020752,2]
[332614804,1721351442220,-205.49,0.00020768,2]
[332614805,1721351442230,-205.49,0.00020768,2]
[332614806,1721351442239,-104998.25202761,0.00020778,2]
[332614807,1721351442248,-151.0,0.00020778,2]
[332614808,1721351442258,-151.0,0.00020778,2]
[332614809,1721351442267,-462.019604,0.00020778,2]
[332614810,1721351442277,-151.0,0.00020778,2]
[332614811,1721351442288,-151.0,0.00020778,2]
[332614812,1721351442297,-151.0,0.00020778,2]
[332614813,1721351442307,-219.180644,0.00020778,2]
[332614814,1721351442317,-151.0,0.00020778,2]
[332614815,1721351442326,-151.0,0.00020778,2]
[332614816,1721351442336,-151.0,0.00020778,2]
[332614817,1721351442345,-151.0,0.00020778,2]
[332614818,1721351442355,-722.390544,0.00020778,2]
[332614819,1721351442364,-722.390544,0.00020778,2]
[332614820,1721351442374,-312.99154,0.00020778,2]
[332614821,1721351442385,-312.99154,0.00020778,2]
[332614822,1721351442395,-151.0,0.00020778,2]
[332614823,1721351442404,-151.0,0.00020778,2]
[332614824,1721351442415,-151.0,0.00020778,2]
[332614825,1721351442424,-151.0,0.00020778,2]
[332614826,1721351442434,-151.0,0.00020778,2]
[332614827,1721351442444,-169.727429,0.00020778,2]
[332614828,1721351442454,-169.727429,0.00020778,2]
[332614829,1721351442463,-151.0,0.00020778,2]
[332614830,1721351442472,-151.0,0.00020778,2]
[332614831,1721351442481,-151.0,0.00020778,2]
[332614832,1721351442491,-191.285642,0.00020778,2]
[332614833,1721351442500,-151.0,0.00020778,2]
[332614834,1721351442510,-157.25567,0.00020778,2]
[332614835,1721351442519,-265.973585,0.00020778,2]
[332614836,1721351442528,-151.0,0.00020778,2]
[332614837,1721351442538,-151.0,0.00020778,2]
[332614839,1721351442547,-151.0,0.00020778,2]
[332614841,1721351442557,-151.0,0.00020778,2]
[332614842,1721351442567,-151.0,0.00020778,2]
[332614843,1721351442576,-151.0,0.00020778,2]
[332614844,1721351442585,-151.0,0.00020778,2]
[332614845,1721351442595,-151.0,0.00020778,2]
[332614846,1721351442604,-166.715702,0.00020778,2]
[332614847,1721351442614,-166.715702,0.00020778,2]
[332614848,1721351442623,-151.0,0.00020778,2]
[332614849,1721351442634,-247.179419,0.00020778,2]
[332614850,1721351442643,-211.695323,0.00020778,2]
[332614851,1721351442652,-211.695323,0.00020778,2]
[332614852,1721351442662,-151.0,0.00020778,2]
[332614853,1721351442671,-151.0,0.00020778,2]
[332614854,1721351442681,-151.0,0.00020778,2]
[332614855,1721351442690,-151.0,0.00020778,2]
[332614856,1721351442699,-192.718128,0.00020778,2]
[332614857,1721351442709,-35000.0,0.000208,2]
[332614858,1721351442718,-151.0,0.000208,2]
[332614859,1721351442728,-151.0,0.000208,2]
[332614860,1721351442737,-151.0,0.000208,2]
[332614861,1721351442747,-614.334274,0.000208,2]
[332614862,1721351442758,-614.334274,0.000208,2]
[332614863,1721351442767,-152.795142,0.000208,2]
[332614864,1721351442776,-300.0,0.000208,7]
[332614865,1721351442785,-175.52485614,0.00020826,2]
[332614866,1721351442795,-205.49,0.0002089,2]
[332614867,1721351442804,-500.0,0.00020899,2]
[332614868,1721351442813,-7576.0,0.000209,4]
[332614869,1721351442823,-3065.76565794,0.000209,2]
[332614870,1721351442832,-4641.27362443,0.000209,2]
[332614871,1721351442841,-1727.98540907,0.000209,2]
[332614872,1721351442851,-5800.0,0.000209,2]
[332614873,1721351442861,-175.52485614,0.000209,2]
[332614874,1721351442870,-1610.35,0.000209,2]
[332614875,1721351442881,-201.01298396,0.000209,2]
[332614876,1721351442890,-8544.81229992,0.000209,2]
[332614877,1721351442900,-300.0,0.000209,7]
[332614878,1721351442909,-3107.53711986,0.000209,2]
[332614879,1721351442919,-2733.98670464,0.000209,2]
[332614880,1721351442928,-4623.8277193,0.000209,2]
[332614881,1721351442938,-397.92612964,0.000209,2]
[332614882,1721351442948,-448.62337147,0.000209,3]
[332614883,1721351442957,-2580.63389601,0.000209,2]
[332614884,1721351442967,-157.071907,0.00020948,2]
[332614885,1721351442976,-157.07191,0.00020948,2]
[332614886,1721351442986,-157.07191,0.00020948,2]
[332614887,1721351442995,-157.07191,0.00020948,2]
[332614888,1721351443009,-205.49,0.0002097,2]
[332614889,1721351443019,-238.846509,0.00020976,2]
[332614890,1721351443028,-205.49,0.00020976,2]
[332614891,1721351443038,-205.49,0.00020976,2]
[332614892,1721351443048,-60431.39086889,0.0002098,2]
[332614893,1721351443058,-151.0,0.0002098,2]
[332614894,1721351443067,-462.019604,0.0002098,2]
[332614895,1721351443076,-151.0,0.0002098,2]
[332614896,1721351443086,-151.0,0.0002098,2]
[332614897,1721351443096,-151.0,0.0002098,2]
[332614898,1721351443106,-151.0,0.0002098,2]
[332614899,1721351443116,-151.0,0.0002098,2]
[332614900,1721351443125,-209.222656,0.0002098,2]
[332614901,1721351443138,-722.390544,0.0002098,2]
[332614902,1721351443149,-722.390544,0.0002098,2]
[332614903,1721351443158,-312.99154,0.0002098,2]
[332614904,1721351443168,-312.99154,0.0002098,2]
[332614905,1721351443177,-151.0,0.0002098,2]
[332614906,1721351443187,-232.020325,0.0002098,2]
[332614908,1721351443197,-151.0,0.0002098,2]
[332614910,1721351443206,-151.0,0.0002098,2]
[332614912,1721351443215,-169.727429,0.0002098,2]
[332614914,1721351443225,-169.727429,0.0002098,2]
[332614916,1721351443235,-151.0,0.0002098,2]
[332614918,1721351443244,-151.0,0.0002098,2]
[332614920,1721351443254,-151.0,0.0002098,2]
[332614922,1721351443264,-151.0,0.0002098,2]
[332614923,1721351443273,-151.0,0.0002098,2]
[332614924,1721351443282,-151.0,0.0002098,2]
[332614925,1721351443291,-151.0,0.0002098,2]
[332614926,1721351443301,-243.7133,0.0002098,2]
[332614927,1721351443310,-166.715702,0.0002098,2]
[332614928,1721351443319,-166.715702,0.0002098,2]
[332614929,1721351443329,-151.0,0.0002098,2]
[332614930,1721351443338,-211.695323,0.0002098,2]
[332614931,1721351443347,-211.695323,0.0002098,2]
[332614932,1721351443357,-151.0,0.0002098,2]
[332614933,1721351443366,-151.0,0.0002098,2]
[332614934,1721351443375,-151.0,0.0002098,2]
[332614935,1721351443387,-151.0,0.0002098,2]
[332614936,1721351443396,-151.0,0.00020986,2]
[332614937,1721351443405,-151.0,0.00020986,2]
[332614938,1721351443414,-462.019604,0.00020986,2]
[332614939,1721351443424,-151.0,0.00020986,2]
[332614940,1721351443434,-614.334274,0.00020986,2]
[332614941,1721351443444,-614.334274,0.00020986,2]
[332614942,1721351443454,-283.052811,0.00020986,2]
[332614943,1721351443463,-3735.2361956,0.00020986,2]
[332614944,1721351443473,-3205.4621741,0.00020986,2]
[332614945,1721351443482,-2675.6881527,0.00020986,2]
[332614946,1721351443491,-2145.9141312,0.00020986,2]
[332614947,1721351443501,-376.6486521,0.00020986,2]
[332614948,1721351443510,-323.228022,0.00020986,2]
[332614949,1721351443519,-269.8073919,0.00020986,2]
[332614950,1721351443529,-216.3867618,0.00020986,2]
[332614951,1721351443538,-151.0,0.00020986,2]
[332614952,1721351443547,-722.390544,0.00020986,2]
[332614953,1721351443556,-722.390544,0.00020986,2]
[332614954,1721351443566,-312.99154,0.00020986,2]
[332614955,1721351443575,-312.99154,0.00020986,2]
[332614956,1721351443584,-50788.4514167,0.00020986,2]
[332614957,1721351443593,-43585.0509513,0.00020986,2]
[332614958,1721351443603,-36381.6504858,0.00020986,2]
[332614959,1721351443612,-29178.2500203,0.00020986,2]
[332614960,1721351443621,-151.0,0.00020986,2]
[332614961,1721351443632,-151.0,0.00020986,2]
[332614962,1721351443641,-169.727429,0.00020986,2]
[332614963,1721351443650,-169.727429,0.00020986,2]
[332614964,1721351443659,-151.0,0.00020986,2]
[332614965,1721351443669,-3033.9096537,0.00020986,2]
[332614966,1721351443678,-2603.6058031,0.00020986,2]
[332614967,1721351443687,-2173.3019525,0.00020986,2]
[332614968,1721351443697,-1742.9981018,0.00020986,2]
[332614969,1721351443706,-151.0,0.00020986,2]
[332614970,1721351443715,-151.0,0.00020986,2]
[332614971,1721351443725,-151.0,0.00020986,2]
[332614972,1721351443735,-166.715702,0.00020986,2]
[332614973,1721351443745,-166.715702,0.00020986,2]
[332614974,1721351443755,-151.0,0.00020986,2]
[332614975,1721351443764,-211.695323,0.00020986,2]
[332614976,1721351443774,-211.695323,0.00020986,2]
[332614977,1721351443783,-151.0,0.00020986,2]
[332614978,1721351443793,-151.0,0.00020986,2]
[332614979,1721351443802,-151.0,0.00020986,2]
[332614980,1721351443811,-151.0,0.00020986,2]
[332614981,1721351443821,-205.49,0.0002099,2]
[332614982,1721351443830,-205.49,0.0002099,2]
[332614983,1721351443840,-205.49,0.0002099,2]
[332614984,1721351443849,-205.49,0.0002099,2]
[332614985,1721351443859,-205.49,0.0002099,2]
[332614986,1721351443868,-205.49,0.0002099,2]
[332614987,1721351443878,-205.49,0.0002099,2]
[332614988,1721351443889,-205.49,0.0002099,2]
[332614989,1721351443899,-205.49,0.0002099,2]
[332614990,1721351443908,-205.49,0.0002099,2]
[332614991,1721351443919,-205.49,0.0002099,2]
[332614992,1721351443929,-205.49,0.0002099,2]
[332614993,1721351443938,-205.49,0.0002099,2]
[332614994,1721351443947,-205.49,0.0002099,2]
[332614995,1721351443956,-205.49,0.0002099,2]
[332614996,1721351443965,-205.49,0.0002099,2]
[332614997,1721351443975,-205.49,0.0002099,2]
[332614998,1721351443984,-205.49,0.0002099,2]
[332614999,1721351443994,-205.49,0.0002099,2]
[332615000,1721351444007,-205.49,0.0002099,2]
[332615001,1721351444016,-205.49,0.0002099,2]
[332615002,1721351444025,-205.49,0.0002099,2]
[332615003,1721351444035,-205.49,0.0002099,2]
[332615004,1721351444045,-205.49,0.0002099,2]
[332615005,1721351444054,-205.49,0.0002099,2]
[332615006,1721351444064,-205.49,0.0002099,2]
[332615007,1721351444074,-205.49,0.0002099,2]
[332615008,1721351444085,-205.49,0.0002099,2]
[332615009,1721351444094,-205.49,0.0002099,2]
[332615010,1721351444104,-205.49,0.0002099,2]
[332615011,1721351444113,-205.49,0.0002099,2]
[332615012,1721351444123,-205.49,0.0002099,2]
[332615013,1721351444137,-300.0,0.00020999,2]
[332615014,1721351444147,-568.73582907,0.00020999,2]
[332615015,1721351444158,-153.263376,0.00020999,2]
[332615016,1721351444168,-743671.09196631,0.00021,2]
[332615017,1721351444912,-561.97850452,0.00021,2]
[332615018,1721351444939,-205.49,0.0002099,2]
[332615019,1721351444950,-2165.98496843,0.00021,2]
[332615020,1721351445266,-205.49,0.0002099,2]
[332615021,1721351445276,-205.49,0.0002099,2]
[332615022,1721351445285,-365.72626943,0.00021,2]
[332615023,1721351445297,-26237.1,0.00021,2]
[332615024,1721351445308,-59969.84065885,0.00021,2]
[332615025,1721351445324,-574.61696002,0.00021,2]
[332615026,1721351445335,-1699.69860153,0.00021,2]
[332615027,1721351445346,-1596.88006637,0.00021,2]
[332615028,1721351445369,-205.49,0.0002099,2]
[332615029,1721351445379,-2116.6356357,0.00021,2]
[332615030,1721351445393,-340.78144659,0.00021,2]
[332615033,1721351446475,-2668.6454998,0.00014015,2]
[332615034,1721351446485,-3648.82027854,0.00018365,2]
[332615035,1721351446497,-2019.08015385,0.00018365,2]
[332615036,1721351446507,-506.014169,0.00018533,2]
[332615037,1721351446516,-506.014169,0.00020778,2]
[332615038,1721351446525,-205.49,0.0002099,2]
[332615039,1721351446535,-55.56608315,0.0002099,2]
[332615040,1721351446555,-149.92391685,0.0002099,2]
[332615041,1721351446565,-205.49,0.0002099,2]
[332615042,1721351446575,-205.49,0.0002099,2]
[332615043,1721351446585,-205.49,0.0002099,2]
[332615044,1721351446595,-205.49,0.0002099,2]
[332615045,1721351446604,-205.49,0.0002099,2]
[332615046,1721351446614,-205.49,0.0002099,2]
[332615047,1721351446623,-205.49,0.0002099,2]
[332615048,1721351446633,-205.49,0.0002099,2]
[332615049,1721351446643,-205.49,0.0002099,2]
[332615050,1721351446652,-205.49,0.0002099,2]
[332615051,1721351446661,-205.49,0.0002099,2]
[332615052,1721351446671,-60.28889935,0.0002099,2]
[332615053,1721351446682,-145.20110065,0.0002099,2]
[332615054,1721351446691,-205.49,0.0002099,2]
[332615055,1721351446701,-205.49,0.0002099,2]
[332615056,1721351446710,-205.49,0.0002099,2]
[332615057,1721351446719,-69.83314236,0.0002099,2]
[332615058,1721351446730,-135.65685764,0.0002099,2]
[332615059,1721351446740,-205.49,0.0002099,2]
[332615060,1721351446749,-205.49,0.0002099,2]
[332615061,1721351446758,-205.49,0.0002099,2]
[332615062,1721351446768,-13682.91827455,0.00021,2]
[332615063,1721351446779,-8047.36758596,0.00021,2]
[332615064,1721351446790,-4558.3946805,0.00021,2]
[332615065,1721351446801,-18717.1864348,0.00021,2]
[332615066,1721351446812,-709.17,0.00021,2]
[332615067,1721351446823,-20204.33082284,0.00021,2]
[332615068,1721351446834,-22163.18622214,0.00021,2]
[332615069,1721351446845,-17924.85026347,0.00021,2]
[332615070,1721351446856,-650.96828781,0.00021,2]
[332615071,1721351446867,-1026.45642444,0.00021,2]
[332615072,1721351446878,-23521.76724492,0.00021,2]
[332615073,1721351448681,-463.16023268,0.000209,2]
[332615074,1721351448691,-506.014169,0.0002098,2]
[332615075,1721351448701,-506.014169,0.00020986,2]
[332615076,1721351448711,-205.49,0.0002099,2]
[332615077,1721351448720,-205.49,0.0002099,2]
[332615078,1721351448730,-205.49,0.0002099,2]
[332615079,1721351448740,-205.49,0.0002099,2]
[332615080,1721351448749,-205.49,0.0002099,2]
[332615081,1721351448758,-205.49,0.0002099,2]
[332615082,1721351448768,-205.49,0.0002099,2]
[332615083,1721351448778,-205.49,0.0002099,2]
[332615084,1721351448788,-120.35937902,0.0002099,2]
[332615085,1721351448801,-85.13062098,0.0002099,2]
[332615086,1721351448811,-205.49,0.0002099,2]
[332615087,1721351448821,-205.49,0.0002099,2]
[332615088,1721351448831,-205.49,0.0002099,2]
[332615089,1721351448842,-3148.4291196,0.00021,2]
[332615090,1721351448855,-450.94606924,0.00021,2]
[332615091,1721351448917,-205.49,0.0002099,2]
[332615092,1721351448928,-205.49,0.0002099,2]
[332615093,1721351448939,-7625.785211,0.00021,2]
[332615094,1721351448952,-16344.51668327,0.00021,2]
[332615095,1721351448965,-2313.36006971,0.00021,2]
[332615096,1721351448978,-284.01629819,0.00021,2]
[332615097,1721351448990,-2535.49260384,0.00021,2]
[332615098,1721351449001,-376.58731798,0.00021,2]
[332615173,1721352471234,474.0,0.0002,10]
[332615210,1721352632037,-237.20245709,0.000118,2]
[332615211,1721352632047,-389.87754298,0.000127,2]
[332615212,1721352632058,-404.72999987,0.000127,2]
[332615213,1721352632069,-205.39245715,0.000127,2]
[332615214,1721352632078,-300.0,0.00013378,2]
[332615215,1721352632088,-109.86195677,0.00013378,2]
[332615217,1721352632201,-190.13804323,0.00013378,2]
[332615218,1721352632212,-218.0,0.0001386,2]
[332615219,1721352632222,-135.88195677,0.0001388,2]
[332615220,1721352632233,-3682.03172911,0.0001388,2]
[332615221,1721352632972,-394.35561024,0.0001388,2]
[332615222,1721352632982,-305.64438976,0.000139,2]
[332615223,1721352632993,-473.66521024,0.000139,2]
[332615224,1721352633002,-25.93478976,0.0001399,2]
[332615225,1721352633013,-999.9006,0.0001399,2]
[332615226,1721352633024,-1000.3932,0.0001399,2]
[332615227,1721352633036,-734.6075021,0.0001399,2]
[332615228,1721352633047,-254.295576,0.0001399,2]
[332615229,1721352633058,-250.0,0.0001399,2]
[332615231,1721352633069,-448.74875887,0.0001399,2]
[332615233,1721352633080,-1095.19142246,0.0001399,2]
[332615236,1721352633092,-600.0,0.0001399,2]
[332615238,1721352633103,-1207.06138023,0.0001399,2]
[332615240,1721352633112,-154.6,0.0001399,2]
[332615242,1721352633122,-154.6,0.0001399,2]
[332615244,1721352633131,-1149.56,0.0001399,2]
[332615246,1721352633141,-154.6,0.0001399,2]
[332615248,1721352633150,-1149.56,0.0001399,2]
[332615250,1721352633161,-154.6,0.0001399,2]
[332615251,1721352633171,-154.6,0.0001399,2]
[332615252,1721352633181,-1149.56,0.0001399,2]
[332615254,1721352633191,-1149.56,0.0001399,2]
[332615255,1721352633201,-1149.56,0.0001399,2]
[332615256,1721352633210,-509.09716815,0.0001399,2]
[332615257,1721352633220,-500.0,0.00013999,2]
[332615258,1721352633230,-195.55776959,0.00013999,2]
[332615259,1721352633239,-500.0,0.00013999,2]
[332615260,1721352633249,-500.0,0.00013999,2]
[332615261,1721352633259,-360.85136438,0.00013999,2]
[332615262,1721352633268,-500.0,0.00013999,2]
[332615263,1721352633278,-500.0,0.00013999,2]
[332615264,1721352633288,-300.0,0.00013999,2]
[332615265,1721352633297,-150.0,0.00013999,2]
[332615266,1721352633306,-7464.48239151,0.00014,2]
[332615267,1721352633318,-951.33899668,0.00014,2]
[332615268,1721352633330,-255.97559429,0.00014,2]
[332615269,1721352633341,-404.7199998,0.00014,2]
[332615270,1721352633352,-9137.35989155,0.00014,2]
[332615271,1721352633394,-640.42,0.00014,2]
[332615276,1721352638169,-700.87052033,0.00014,2]
[332615277,1721352638181,-461.46776968,0.00014,2]
[332615278,1721352638192,-1222.67910428,0.00014,2]
[332615279,1721352638352,-996.9406,0.00014,2]
[332615280,1721352638364,-1453.9422444,0.00014,2]
[332615281,1721352638375,-1433.36538452,0.00014,2]
[332615282,1721352638387,-1417.8438135,0.00014,2]
[332615283,1721352638548,-3154.32353178,0.00014,2]
[332615293,1721352640148,-671.5595321,0.00014,2]